[Event "*** Titled Tuesday Blitz"]
[Site "Chess.com"]
[Date "2021.04.06"]
[Round "4"]
[White "DrVelja"]
[Black "Mikhail_Golubev"]
[Result "1-0"]
[WhiteElo "2865"]
[BlackElo "2560"]
[TimeControl "180+1"]
[EndTime "10:40:11 PDT"]
[Termination "DrVelja won by resignation"]

1. e4 {[%clk 0:03:00.9]} 1... c5 {[%clk 0:02:59.6]} 2. Nc3 {[%clk 0:02:55.6]}
2... Nc6 {[%clk 0:02:57]} 3. Bb5 {[%clk 0:02:53.1]} 3... Nd4 {[%clk 0:02:53]} 4.
Nf3 {[%clk 0:02:52.7]} 4... a6 {[%clk 0:02:49.4]} 5. Bd3 {[%clk 0:02:49.5]} 5...
Nc6 {[%clk 0:02:47.6]} 6. O-O {[%clk 0:02:46.4]} 6... g6 {[%clk 0:02:46.8]} 7.
a3 {[%clk 0:02:37.1]} 7... Bg7 {[%clk 0:02:45.8]} 8. Rb1 {[%clk 0:02:36.3]} 8...
b5 {[%clk 0:02:33.4]} 9. Re1 {[%clk 0:02:24.8]} 9... Nh6 {[%clk 0:02:28.9]} 10.
b4 {[%clk 0:02:08.7]} 10... c4 {[%clk 0:02:27.6]} 11. Bf1 {[%clk 0:02:09.3]}
11... Ng4 {[%clk 0:02:16.4]} 12. h3 {[%clk 0:01:55.2]} 12... Nge5 {[%clk
0:02:15.2]} 13. Nxe5 {[%clk 0:01:53.9]} 13... Bxe5 {[%clk 0:02:14.5]} 14. Nd5
{[%clk 0:01:24.1]} 14... e6 {[%clk 0:02:08.4]} 15. d3 {[%clk 0:00:50.1]} 15...
O-O {[%clk 0:01:52.2]} 16. dxc4 {[%clk 0:00:49.9]} 16... bxc4 {[%clk 0:01:46.2]}
17. Ne3 {[%clk 0:00:49.1]} 17... c3 {[%clk 0:01:41.2]} 18. Nc4 {[%clk
0:00:48.4]} 18... Bc7 {[%clk 0:01:34]} 19. Bh6 {[%clk 0:00:45.7]} 19... Re8
{[%clk 0:01:31]} 20. Nd6 {[%clk 0:00:43]} 20... Bxd6 {[%clk 0:01:21.2]} 21. Qxd6
{[%clk 0:00:41.8]} 21... Qf6 {[%clk 0:01:08.7]} 22. Rbd1 {[%clk 0:00:34.8]}
22... g5 {[%clk 0:01:06]} 23. Bxg5 {[%clk 0:00:25.4]} 23... Qxg5 {[%clk
0:01:05.9]} 24. Re3 {[%clk 0:00:26.3]} 24... Qe5 {[%clk 0:01:01.7]} 25. Rg3+
{[%clk 0:00:24.8]} 25... Kh8 {[%clk 0:01:01.7]} 26. Qxe5+ {[%clk 0:00:21.5]}
26... Nxe5 {[%clk 0:01:00.9]} 27. Rxc3 {[%clk 0:00:22.4]} 27... Ra7 {[%clk
0:00:57]} 28. f4 {[%clk 0:00:18.8]} 28... Ng6 {[%clk 0:00:55.5]} 29. g3 {[%clk
0:00:19]} 29... Rg8 {[%clk 0:00:55]} 30. Kf2 {[%clk 0:00:18.8]} 30... Ne7 {[%clk
0:00:52.7]} 31. Rd6 {[%clk 0:00:17.2]} 31... f5 {[%clk 0:00:50]} 32. Bd3 {[%clk
0:00:17.7]} 32... fxe4 {[%clk 0:00:42.8]} 33. Bxe4 {[%clk 0:00:18.6]} 33... Nf5
{[%clk 0:00:40.9]} 34. Bxf5 {[%clk 0:00:18.4]} 34... exf5 {[%clk 0:00:40.8]} 35.
Rc5 {[%clk 0:00:19]} 35... Rf8 {[%clk 0:00:38.8]} 36. c4 {[%clk 0:00:18.9]}
36... Kg7 {[%clk 0:00:29.9]} 37. Ke3 {[%clk 0:00:18.3]} 37... Re8+ {[%clk
0:00:25.1]} 38. Kd3 {[%clk 0:00:18.1]} 38... Bb7 {[%clk 0:00:25.1]} 39. Rxd7+
{[%clk 0:00:17.8]} 39... Kg8 {[%clk 0:00:24.7]} 40. Kd2 {[%clk 0:00:15.9]} 40...
Raa8 {[%clk 0:00:03.8]} 41. Rxb7 {[%clk 0:00:16.2]} 41... Rad8+ {[%clk
0:00:03.9]} 42. Rd5 {[%clk 0:00:16.8]} 42... Rc8 {[%clk 0:00:03.2]} 43. c5
{[%clk 0:00:17.4]} 1-0

[Event "*** Titled Tuesday Blitz"]
[Site "Chess.com"]
[Date "2021.04.06"]
[Round "4"]
[White "AttackSparrow"]
[Black "CzechmVIII"]
[Result "1-0"]
[WhiteElo "2533"]
[BlackElo "2209"]
[TimeControl "180+1"]
[EndTime "10:40:15 PDT"]
[Termination "AttackSparrow won by resignation"]

1. e4 {[%clk 0:01:34.8]} 1... c5 {[%clk 0:02:57.1]} 2. c3 {[%clk 0:01:34.6]}
2... d5 {[%clk 0:02:56.6]} 3. exd5 {[%clk 0:01:35.5]} 3... Nf6 {[%clk
0:02:56.7]} 4. d4 {[%clk 0:01:36.2]} 4... Nxd5 {[%clk 0:02:56.8]} 5. Nf3 {[%clk
0:01:36.2]} 5... cxd4 {[%clk 0:02:57.1]} 6. Qxd4 {[%clk 0:01:35]} 6... e6 {[%clk
0:02:50.7]} 7. Bb5+ {[%clk 0:01:34.3]} 7... Bd7 {[%clk 0:02:50.4]} 8. Bxd7+
{[%clk 0:01:33.6]} 8... Nxd7 {[%clk 0:02:48.3]} 9. O-O {[%clk 0:01:34.5]} 9...
Bc5 {[%clk 0:02:46.2]} 10. Qxg7 {[%clk 0:01:34.4]} 10... Qf6 {[%clk 0:02:41.4]}
11. Qxf6 {[%clk 0:01:33.9]} 11... N7xf6 {[%clk 0:02:41.6]} 12. Nbd2 {[%clk
0:01:26.8]} 12... O-O-O {[%clk 0:02:38.5]} 13. Nb3 {[%clk 0:01:25.5]} 13... Be7
{[%clk 0:02:30.5]} 14. Bg5 {[%clk 0:01:21.1]} 14... h6 {[%clk 0:02:17.6]} 15.
Bh4 {[%clk 0:01:20.1]} 15... Rhg8 {[%clk 0:02:16.5]} 16. Bg3 {[%clk 0:01:15.1]}
16... Nh5 {[%clk 0:02:11.3]} 17. Ne5 {[%clk 0:01:13.2]} 17... f5 {[%clk
0:02:01]} 18. f4 {[%clk 0:00:39.6]} 18... Nxg3 {[%clk 0:01:56.2]} 19. hxg3
{[%clk 0:00:40.5]} 19... Rxg3 {[%clk 0:01:56]} 20. Rad1 {[%clk 0:00:36.9]} 20...
Ne3 {[%clk 0:01:44.7]} 21. Rxd8+ {[%clk 0:00:37.8]} 21... Kxd8 {[%clk 0:01:45]}
22. Rf2 {[%clk 0:00:36.1]} 22... Ng4 {[%clk 0:01:26.6]} 23. Rd2+ {[%clk
0:00:35.1]} 23... Ke8 {[%clk 0:01:26.4]} 24. Nf3 {[%clk 0:00:28.5]} 24... a5
{[%clk 0:01:05.9]} 25. Re2 {[%clk 0:00:27.3]} 25... a4 {[%clk 0:01:00.8]} 26.
Nbd4 {[%clk 0:00:26.9]} 26... Bc5 {[%clk 0:00:40.5]} 27. Rxe6+ {[%clk
0:00:25.3]} 27... Kd7 {[%clk 0:00:39.3]} 28. Re2 {[%clk 0:00:22]} 28... Nf6
{[%clk 0:00:32]} 29. Kh2 {[%clk 0:00:18.6]} 29... Rg8 {[%clk 0:00:28.4]} 30.
Ne5+ {[%clk 0:00:16.7]} 30... Kc7 {[%clk 0:00:27]} 31. Nxf5 {[%clk 0:00:17.6]}
31... Nd5 {[%clk 0:00:16.5]} 32. g3 {[%clk 0:00:16.8]} 32... h5 {[%clk 0:00:16]}
33. c4 {[%clk 0:00:15]} 33... Nb4 {[%clk 0:00:15.6]} 34. a3 {[%clk 0:00:15.3]}
34... Nc6 {[%clk 0:00:15.4]} 35. Nd3 {[%clk 0:00:15.5]} 35... Bf8 {[%clk
0:00:14.2]} 36. Ne5 {[%clk 0:00:13.6]} 36... Nxe5 {[%clk 0:00:13.9]} 37. Rxe5
{[%clk 0:00:14.2]} 37... Bg7 {[%clk 0:00:13.2]} 38. Nxg7 {[%clk 0:00:14.4]}
38... Rxg7 {[%clk 0:00:13.6]} 39. Rxh5 {[%clk 0:00:15]} 39... Rd7 {[%clk
0:00:13.5]} 40. Rb5 {[%clk 0:00:15.4]} 40... Rd3 {[%clk 0:00:12.7]} 41. Kh3
{[%clk 0:00:16]} 41... Kc6 {[%clk 0:00:11.8]} 42. Kg4 {[%clk 0:00:16.2]} 42...
Rd4 {[%clk 0:00:12.1]} 43. Kg5 {[%clk 0:00:16.2]} 43... Rxc4 {[%clk 0:00:12.4]}
44. Rb4 {[%clk 0:00:16.2]} 44... Rc2 {[%clk 0:00:11.6]} 45. f5 {[%clk
0:00:16.3]} 45... Rf2 {[%clk 0:00:10.9]} 46. f6 {[%clk 0:00:16.3]} 46... Kd6
{[%clk 0:00:11.2]} 47. Rxb7 {[%clk 0:00:15.7]} 47... Ke6 {[%clk 0:00:11.4]} 48.
Rb6+ {[%clk 0:00:16.1]} 48... Kf7 {[%clk 0:00:11.7]} 49. g4 {[%clk 0:00:17]}
49... Rxb2 {[%clk 0:00:09.1]} 50. Rxb2 {[%clk 0:00:16.9]} 1-0

[Event "*** Titled Tuesday Blitz"]
[Site "Chess.com"]
[Date "2021.04.06"]
[Round "4"]
[White "GadimbayliA"]
[Black "jefferyx"]
[Result "0-1"]
[WhiteElo "2789"]
[BlackElo "2975"]
[TimeControl "180+1"]
[EndTime "10:40:17 PDT"]
[Termination "jefferyx won by resignation"]

1. e4 {[%clk 0:02:50.3]} 1... e6 {[%clk 0:02:59.1]} 2. d4 {[%clk 0:02:50.2]}
2... d5 {[%clk 0:02:58.5]} 3. Nd2 {[%clk 0:02:50.8]} 3... c5 {[%clk 0:02:57.8]}
4. exd5 {[%clk 0:02:49.3]} 4... Qxd5 {[%clk 0:02:58.7]} 5. Ngf3 {[%clk
0:02:49.7]} 5... cxd4 {[%clk 0:02:59]} 6. Bc4 {[%clk 0:02:50.3]} 6... Qd7 {[%clk
0:02:57.9]} 7. O-O {[%clk 0:02:50.8]} 7... Nc6 {[%clk 0:02:58.3]} 8. Nb3 {[%clk
0:02:50.7]} 8... a6 {[%clk 0:02:58.3]} 9. Nbxd4 {[%clk 0:02:51]} 9... Nxd4
{[%clk 0:02:59.2]} 10. Nxd4 {[%clk 0:02:51.9]} 10... Qc7 {[%clk 0:02:59.2]} 11.
Bd3 {[%clk 0:02:48.9]} 11... Bd6 {[%clk 0:02:59.2]} 12. Re1 {[%clk 0:02:47.5]}
12... Bxh2+ {[%clk 0:02:39.2]} 13. Kh1 {[%clk 0:02:47]} 13... Be5 {[%clk
0:02:40.1]} 14. Nxe6 {[%clk 0:02:19.8]} 14... Bxe6 {[%clk 0:02:34.9]} 15. Qh5
{[%clk 0:02:19.6]} 15... g5 {[%clk 0:02:24.8]} 16. f4 {[%clk 0:01:42.4]} 16...
Nf6 {[%clk 0:02:17.2]} 17. Qxg5 {[%clk 0:01:41.3]} 17... Bd4 {[%clk 0:02:13.5]}
18. f5 {[%clk 0:01:15.5]} 18... O-O-O {[%clk 0:01:51.4]} 19. fxe6 {[%clk
0:01:09]} 19... Rhg8 {[%clk 0:01:51.5]} 20. Qf4 {[%clk 0:00:58.7]} 20... Qa5
{[%clk 0:01:51.3]} 21. Bd2 {[%clk 0:00:47.1]} 21... Qd5 {[%clk 0:01:32.2]} 22.
Qf3 {[%clk 0:00:38.1]} 22... Rg4 {[%clk 0:01:28.7]} 23. Be3 {[%clk 0:00:29.3]}
23... Qxf3 {[%clk 0:01:19.8]} 24. gxf3 {[%clk 0:00:27.4]} 24... Rh4+ {[%clk
0:01:20.3]} 25. Kg2 {[%clk 0:00:27]} 25... Rg8+ {[%clk 0:01:21.2]} 26. Kf1
{[%clk 0:00:21.1]} 26... Rh1+ {[%clk 0:01:06.2]} 27. Kf2 {[%clk 0:00:20.2]}
27... Rh2+ {[%clk 0:01:05.4]} 28. Kf1 {[%clk 0:00:20.3]} 28... Bxe3 {[%clk
0:01:05.5]} 29. Rxe3 {[%clk 0:00:21.2]} 29... Rh1+ {[%clk 0:01:05.7]} 30. Kf2
{[%clk 0:00:17.5]} 30... Rxa1 {[%clk 0:01:06.6]} 31. exf7 {[%clk 0:00:17.8]}
31... Rf8 {[%clk 0:01:06.5]} 32. Bc4 {[%clk 0:00:18.4]} 32... Rc1 {[%clk
0:01:06.4]} 33. Bb3 {[%clk 0:00:18.3]} 33... Rd1 {[%clk 0:00:59.3]} 34. Kg3
{[%clk 0:00:18.4]} 34... Kd7 {[%clk 0:00:54.3]} 35. Be6+ {[%clk 0:00:17.7]}
35... Kd8 {[%clk 0:00:54.2]} 36. Bb3 {[%clk 0:00:17.9]} 36... Rd7 {[%clk
0:00:52.9]} 37. Kh4 {[%clk 0:00:16.8]} 37... Nd5 {[%clk 0:00:52.4]} 38. Re5
{[%clk 0:00:16.6]} 38... Nf4 {[%clk 0:00:33.4]} 39. Kg5 {[%clk 0:00:12.2]} 39...
Rdxf7 {[%clk 0:00:33.3]} 40. Bxf7 {[%clk 0:00:11.7]} 40... Rxf7 {[%clk
0:00:34.2]} 41. Kh6 {[%clk 0:00:09.1]} 41... Kd7 {[%clk 0:00:33]} 42. c4 {[%clk
0:00:08.4]} 42... Ne6 {[%clk 0:00:32.7]} 43. Re3 {[%clk 0:00:05.4]} 43... Ke7
{[%clk 0:00:32.5]} 44. b4 {[%clk 0:00:03.9]} 44... Kf6 {[%clk 0:00:32.7]} 45. c5
{[%clk 0:00:04.4]} 45... Rg7 {[%clk 0:00:32.7]} 46. Kh5 {[%clk 0:00:03.9]} 46...
Nf4+ {[%clk 0:00:31]} 47. Kh6 {[%clk 0:00:03.7]} 47... Rg2 {[%clk 0:00:27.9]}
48. Kxh7 {[%clk 0:00:04]} 48... Rh2+ {[%clk 0:00:27.8]} 49. Kg8 {[%clk
0:00:04.2]} 49... Ng6 {[%clk 0:00:28.7]} 0-1

[Event "*** Titled Tuesday Blitz"]
[Site "Chess.com"]
[Date "2021.04.06"]
[Round "4"]
[White "Kobalia"]
[Black "mishanick"]
[Result "1-0"]
[WhiteElo "2776"]
[BlackElo "2935"]
[TimeControl "180+1"]
[EndTime "10:40:18 PDT"]
[Termination "Kobalia won on time"]

1. e4 {[%clk 0:03:00.8]} 1... c5 {[%clk 0:03:00.5]} 2. Nf3 {[%clk 0:02:59.8]}
2... d6 {[%clk 0:03:01.2]} 3. Bb5+ {[%clk 0:02:59.6]} 3... Nd7 {[%clk
0:03:01.1]} 4. c3 {[%clk 0:02:59]} 4... Nf6 {[%clk 0:03:00.3]} 5. Qe2 {[%clk
0:02:59.2]} 5... e6 {[%clk 0:02:59.3]} 6. O-O {[%clk 0:02:58.3]} 6... Be7 {[%clk
0:02:59.3]} 7. d4 {[%clk 0:02:58]} 7... O-O {[%clk 0:02:59]} 8. Re1 {[%clk
0:02:54.9]} 8... a6 {[%clk 0:02:59]} 9. Ba4 {[%clk 0:02:54.3]} 9... b5 {[%clk
0:02:56.6]} 10. Bc2 {[%clk 0:02:53.8]} 10... Bb7 {[%clk 0:02:57.2]} 11. Nbd2
{[%clk 0:02:49.4]} 11... Re8 {[%clk 0:02:56]} 12. Nf1 {[%clk 0:02:49]} 12... Nf8
{[%clk 0:02:56.3]} 13. Ng3 {[%clk 0:02:47.9]} 13... Rc8 {[%clk 0:02:56]} 14. Bg5
{[%clk 0:02:40]} 14... Qa5 {[%clk 0:02:50.3]} 15. e5 {[%clk 0:02:31.3]} 15...
dxe5 {[%clk 0:02:36.5]} 16. dxe5 {[%clk 0:02:30.3]} 16... Nd5 {[%clk 0:02:33.2]}
17. Ne4 {[%clk 0:02:23.6]} 17... Rc7 {[%clk 0:02:16.4]} 18. Bxe7 {[%clk
0:02:18.4]} 18... Nxe7 {[%clk 0:01:49]} 19. Nxc5 {[%clk 0:02:05.9]} 19... b4
{[%clk 0:01:17.5]} 20. cxb4 {[%clk 0:01:55.9]} 20... Qxb4 {[%clk 0:01:16.9]} 21.
Nxb7 {[%clk 0:01:55.9]} 21... Qxb7 {[%clk 0:01:16.7]} 22. Be4 {[%clk 0:01:53.2]}
22... Qb6 {[%clk 0:01:16]} 23. Rac1 {[%clk 0:01:50.9]} 23... Rec8 {[%clk
0:01:15]} 24. Rxc7 {[%clk 0:01:49.8]} 24... Rxc7 {[%clk 0:01:15.9]} 25. g3
{[%clk 0:01:49.5]} 25... h6 {[%clk 0:01:14.1]} 26. Rd1 {[%clk 0:01:48.9]} 26...
a5 {[%clk 0:01:00.6]} 27. Kg2 {[%clk 0:01:40.2]} 27... Rd7 {[%clk 0:00:57.3]}
28. b3 {[%clk 0:01:29.6]} 28... Ra7 {[%clk 0:00:51.7]} 29. Rd6 {[%clk
0:01:21.7]} 29... Qc7 {[%clk 0:00:47.1]} 30. Qd3 {[%clk 0:01:19.2]} 30... g6
{[%clk 0:00:27]} 31. Nd4 {[%clk 0:00:54.5]} 31... Qc5 {[%clk 0:00:24.4]} 32. Nb5
{[%clk 0:00:49.8]} 32... h5 {[%clk 0:00:09]} 33. Nxa7 {[%clk 0:00:46]} 33...
Qxa7 {[%clk 0:00:09.9]} 34. Rd8 {[%clk 0:00:45.8]} 34... Kg7 {[%clk 0:00:07.5]}
35. h4 {[%clk 0:00:39.2]} 35... Nf5 {[%clk 0:00:04.6]} 36. Qb5 {[%clk
0:00:15.9]} 36... Qc7 {[%clk 0:00:02.7]} 37. Qe8 {[%clk 0:00:14.8]} 37... Qc5
{[%clk 0:00:03]} 38. Rc8 {[%clk 0:00:12.7]} 38... Qb4 {[%clk 0:00:03.3]} 39. Bf3
{[%clk 0:00:10.1]} 39... Nd4 {[%clk 0:00:02.7]} 40. Rc7 {[%clk 0:00:09.2]} 1-0

[Event "*** Titled Tuesday Blitz"]
[Site "Chess.com"]
[Date "2021.04.06"]
[Round "4"]
[White "serhanberat_ozdemir"]
[Black "Fandorine"]
[Result "1/2-1/2"]
[WhiteElo "2635"]
[BlackElo "2893"]
[TimeControl "180+1"]
[EndTime "10:40:18 PDT"]
[Termination "Game drawn by repetition"]

1. e4 {[%clk 0:03:00.9]} 1... c5 {[%clk 0:02:59.8]} 2. Nf3 {[%clk 0:03:01.2]}
2... e6 {[%clk 0:02:59.5]} 3. c3 {[%clk 0:03:01.2]} 3... d5 {[%clk 0:02:56.5]}
4. exd5 {[%clk 0:03:01.6]} 4... Qxd5 {[%clk 0:02:56.4]} 5. d4 {[%clk 0:03:02]}
5... Nf6 {[%clk 0:02:56.4]} 6. Bd3 {[%clk 0:03:01]} 6... Be7 {[%clk 0:02:55.7]}
7. O-O {[%clk 0:03:01.1]} 7... O-O {[%clk 0:02:56.3]} 8. Be3 {[%clk 0:03:00.7]}
8... cxd4 {[%clk 0:02:54.7]} 9. cxd4 {[%clk 0:03:01.6]} 9... Nc6 {[%clk
0:02:54.6]} 10. Nc3 {[%clk 0:03:01.8]} 10... Qd8 {[%clk 0:02:55.2]} 11. Rc1
{[%clk 0:02:56.8]} 11... Nb4 {[%clk 0:02:47]} 12. Bb1 {[%clk 0:02:54.8]} 12...
b6 {[%clk 0:02:47.4]} 13. Ne5 {[%clk 0:02:41.9]} 13... Bb7 {[%clk 0:02:41.2]}
14. Qe2 {[%clk 0:02:34.1]} 14... Nbd5 {[%clk 0:02:30.9]} 15. Rfd1 {[%clk
0:02:31.8]} 15... Rc8 {[%clk 0:02:29.9]} 16. Nxd5 {[%clk 0:02:02.8]} 16... Qxd5
{[%clk 0:02:18.8]} 17. f3 {[%clk 0:02:03.4]} 17... Rxc1 {[%clk 0:02:10.3]} 18.
Rxc1 {[%clk 0:02:03.6]} 18... Rc8 {[%clk 0:02:07.6]} 19. Rxc8+ {[%clk
0:01:57.9]} 19... Bxc8 {[%clk 0:02:08.5]} 20. a3 {[%clk 0:01:49.3]} 20... Bb7
{[%clk 0:02:06.9]} 21. b4 {[%clk 0:01:40.5]} 21... Qb3 {[%clk 0:01:55.8]} 22.
Qd3 {[%clk 0:01:31.9]} 22... Qxd3 {[%clk 0:01:51.4]} 23. Bxd3 {[%clk 0:01:32.1]}
23... Nd5 {[%clk 0:01:52.3]} 24. Bd2 {[%clk 0:01:27.1]} 24... a6 {[%clk
0:01:47.8]} 25. Be4 {[%clk 0:01:17.1]} 25... f6 {[%clk 0:01:02.8]} 26. Nc4
{[%clk 0:01:09.2]} 26... b5 {[%clk 0:00:46.5]} 27. Ne3 {[%clk 0:00:54.5]} 27...
Bd6 {[%clk 0:00:34.8]} 28. Nxd5 {[%clk 0:00:52.2]} 28... Bxd5 {[%clk 0:00:32.1]}
29. Bxd5 {[%clk 0:00:52.4]} 29... exd5 {[%clk 0:00:33]} 30. Kf2 {[%clk
0:00:51.5]} 30... h5 {[%clk 0:00:31.8]} 31. g3 {[%clk 0:00:49]} 31... Kf7 {[%clk
0:00:32]} 32. h3 {[%clk 0:00:38.5]} 32... g5 {[%clk 0:00:32.3]} 33. g4 {[%clk
0:00:38.4]} 33... Kg6 {[%clk 0:00:32.4]} 34. Ke2 {[%clk 0:00:37.4]} 34... f5
{[%clk 0:00:31.7]} 35. Kf2 {[%clk 0:00:37.7]} 35... Be7 {[%clk 0:00:30.5]} 36.
Ke2 {[%clk 0:00:37.5]} 36... Bd8 {[%clk 0:00:29.5]} 37. Kd3 {[%clk 0:00:34]}
37... Bc7 {[%clk 0:00:27.8]} 38. Be3 {[%clk 0:00:32.6]} 38... Bd6 {[%clk
0:00:24.8]} 39. Bd2 {[%clk 0:00:32.2]} 39... Be7 {[%clk 0:00:20]} 40. Be3 {[%clk
0:00:31.1]} 40... hxg4 {[%clk 0:00:18.4]} 41. hxg4 {[%clk 0:00:30.8]} 41... f4
{[%clk 0:00:18.9]} 42. Bd2 {[%clk 0:00:30.3]} 42... Kf7 {[%clk 0:00:19.7]} 43.
Bc3 {[%clk 0:00:30.3]} 43... Ke6 {[%clk 0:00:20.6]} 44. Bd2 {[%clk 0:00:30.7]}
44... Kd7 {[%clk 0:00:21.5]} 45. Kc3 {[%clk 0:00:29.9]} 45... Bd6 {[%clk
0:00:21.8]} 46. Kb3 {[%clk 0:00:29.4]} 46... Kc6 {[%clk 0:00:22.7]} 47. Bc3
{[%clk 0:00:29.7]} 47... Bc7 {[%clk 0:00:21.5]} 48. Bd2 {[%clk 0:00:29.2]} 48...
Bb6 {[%clk 0:00:21.3]} 49. Bc3 {[%clk 0:00:29.9]} 49... Ba7 {[%clk 0:00:21.6]}
50. Bb2 {[%clk 0:00:29.6]} 50... Kd7 {[%clk 0:00:21.4]} 51. Bc3 {[%clk
0:00:29.7]} 51... Bb6 {[%clk 0:00:22.3]} 52. Kc2 {[%clk 0:00:29.9]} 52... Kc7
{[%clk 0:00:23.2]} 53. Kd3 {[%clk 0:00:30.4]} 53... Kc6 {[%clk 0:00:24]} 54. Kc2
{[%clk 0:00:30.8]} 54... Bc7 {[%clk 0:00:24.5]} 55. Kd3 {[%clk 0:00:31.4]} 55...
Kb7 {[%clk 0:00:25.4]} 56. Kc2 {[%clk 0:00:31.8]} 56... Bd6 {[%clk 0:00:22.2]}
57. Kb3 {[%clk 0:00:32]} 57... Bf8 {[%clk 0:00:22.2]} 58. Kc2 {[%clk 0:00:31.3]}
58... Bd6 {[%clk 0:00:22.9]} 59. Kb3 {[%clk 0:00:31.6]} 59... Bf8 {[%clk
0:00:23.8]} 60. Kc2 {[%clk 0:00:32]} 60... Bd6 {[%clk 0:00:24.7]} 1/2-1/2

[Event "*** Titled Tuesday Blitz"]
[Site "Chess.com"]
[Date "2021.04.06"]
[Round "4"]
[White "Chopper1905"]
[Black "Hasangatin_Ramil"]
[Result "1-0"]
[WhiteElo "2944"]
[BlackElo "2568"]
[TimeControl "180+1"]
[EndTime "10:40:21 PDT"]
[Termination "Chopper1905 won on time"]

1. d4 {[%clk 0:03:00.9]} 1... Nf6 {[%clk 0:02:58.5]} 2. c4 {[%clk 0:03:00.6]}
2... c5 {[%clk 0:02:59.1]} 3. d5 {[%clk 0:03:00.1]} 3... e6 {[%clk 0:02:59.6]}
4. Nc3 {[%clk 0:02:59.7]} 4... exd5 {[%clk 0:03:00.5]} 5. cxd5 {[%clk
0:03:00.6]} 5... Bd6 {[%clk 0:03:00.5]} 6. Bg5 {[%clk 0:02:30.7]} 6... Bc7
{[%clk 0:02:58.1]} 7. Nf3 {[%clk 0:02:24.6]} 7... d6 {[%clk 0:02:57.2]} 8. Nd2
{[%clk 0:02:22]} 8... a6 {[%clk 0:02:56.2]} 9. a4 {[%clk 0:02:14.4]} 9... h6
{[%clk 0:02:54.8]} 10. Bh4 {[%clk 0:02:11.8]} 10... Nbd7 {[%clk 0:02:54.6]} 11.
Nc4 {[%clk 0:02:09.2]} 11... O-O {[%clk 0:02:39.7]} 12. e3 {[%clk 0:02:08.7]}
12... Re8 {[%clk 0:02:39.3]} 13. Be2 {[%clk 0:02:03.2]} 13... Ne5 {[%clk
0:02:39.1]} 14. Na3 {[%clk 0:01:54.8]} 14... Rb8 {[%clk 0:02:31.4]} 15. O-O
{[%clk 0:01:52.9]} 15... Bf5 {[%clk 0:02:27.4]} 16. e4 {[%clk 0:01:43.2]} 16...
Bd7 {[%clk 0:02:21.8]} 17. f4 {[%clk 0:00:52.8]} 17... Ng6 {[%clk 0:02:21.5]}
18. Bxf6 {[%clk 0:00:50.3]} 18... Qxf6 {[%clk 0:02:22.4]} 19. e5 {[%clk
0:00:50.7]} 19... dxe5 {[%clk 0:02:17.1]} 20. Ne4 {[%clk 0:00:51.1]} 20... Qd8
{[%clk 0:02:15.4]} 21. d6 {[%clk 0:00:49.1]} 21... Bb6 {[%clk 0:02:06.4]} 22.
fxe5 {[%clk 0:00:42.6]} 22... Rxe5 {[%clk 0:01:58.3]} 23. Bc4 {[%clk 0:00:36.3]}
23... Be6 {[%clk 0:01:41.9]} 24. Qf3 {[%clk 0:00:28.3]} 24... Qd7 {[%clk
0:01:03.1]} 25. Rad1 {[%clk 0:00:28]} 25... Re8 {[%clk 0:00:58.4]} 26. Ng3
{[%clk 0:00:24.2]} 26... Bd8 {[%clk 0:00:48.8]} 27. Bxe6 {[%clk 0:00:24]} 27...
R5xe6 {[%clk 0:00:47.6]} 28. Nf5 {[%clk 0:00:23.5]} 28... Bf6 {[%clk 0:00:45.1]}
29. Nc4 {[%clk 0:00:23.2]} 29... Ne5 {[%clk 0:00:38.9]} 30. Nxe5 {[%clk
0:00:20]} 30... Rxe5 {[%clk 0:00:39.8]} 31. a5 {[%clk 0:00:18.2]} 31... R5e6
{[%clk 0:00:35.2]} 32. Rd5 {[%clk 0:00:17]} 32... Bd4+ {[%clk 0:00:28.8]} 33.
Kh1 {[%clk 0:00:16.2]} 33... Rf6 {[%clk 0:00:23.3]} 34. Qg4 {[%clk 0:00:10]}
34... Rxf5 {[%clk 0:00:11.6]} 35. Rdxf5 {[%clk 0:00:10.9]} 35... f6 {[%clk
0:00:08.3]} 36. b4 {[%clk 0:00:06.2]} 36... Qxd6 {[%clk 0:00:06.6]} 37. bxc5
{[%clk 0:00:06.5]} 37... Qe6 {[%clk 0:00:05.1]} 38. Qxd4 {[%clk 0:00:05.9]}
38... Qxf5 {[%clk 0:00:04.9]} 39. Rxf5 {[%clk 0:00:06.8]} 39... Re1+ {[%clk
0:00:03.7]} 40. Qg1 {[%clk 0:00:07]} 1-0